fUSD/lending_fUSD_20251225
["ID","MTS","AMOUNT","RATE_DAILY","PERIOD"]
[399721494,1766635695055,-10000.01,0.00012038,2]
[399721495,1766635695187,-10000.01,0.00012038,2]
[399721496,1766635695296,-10000.01,0.00012038,2]
[399721497,1766635695424,-10000.01,0.00012038,2]
[399721498,1766635700608,-10000.01,0.00012038,2]
[399721499,1766635700722,-10000.01,0.00012038,2]
[399721500,1766635700820,-10000.01,0.00012038,2]
[399721501,1766635700934,-10000.01,0.00012038,2]
[399721502,1766635701056,-10000.01,0.00012038,2]
[399721503,1766635701161,-10000.01,0.00012038,2]
[399721504,1766635701287,-10000.01,0.00012038,2]
[399721505,1766635701387,-10000.01,0.00012038,2]
[399721506,1766635701521,-10000.01,0.00012038,2]
[399721507,1766635701649,-10000.01,0.00012038,2]
[399721508,1766635709783,-10000.01,0.00012038,2]
[399721509,1766635709901,-10000.01,0.00012038,2]
[399721510,1766635715896,-10000.01,0.00012038,2]
[399721511,1766635716003,-10000.01,0.00012038,2]
[399721512,1766635762052,-153.79709813,0.00011938,2]
[399721513,1766635765743,-263.72438278,0.00011938,2]
[399721514,1766635769729,-182.57397268,0.00011938,2]
[399721515,1766635772811,-164.42133943,0.00011938,2]
[399721516,1766635775648,-228.57726909,0.00011938,2]
[399721517,1766635778816,-202.20029535,0.00011938,2]
[399721518,1766635781094,-177.37145397,0.00011938,2]
[399721519,1766635783069,-268.89198256,0.00011938,2]
[399721520,1766635784775,-219.63367838,0.00011938,2]
[399721521,1766635784995,-10000.01,0.00011938,2]
[399721522,1766635789115,-199.77480922,0.00011938,2]
[399721523,1766635790952,-10000.01,0.00011938,2]
[399721524,1766635825176,-3868.92911904,0.00011938,2]
[399721525,1766635825201,-2262.15176192,0.00011938,2]
[399721526,1766635825347,-300.0,0.00011988,2]
[399721527,1766635825380,-500.0,0.00012037,2]
[399721528,1766635825411,-171.25803197,0.00012037,2]
[399721529,1766635825441,-500.0,0.00012037,2]
[399721530,1766635825471,-500.0,0.00012037,2]
[399721531,1766635825500,-500.0,0.00012037,2]
[399721532,1766635825528,-503.42768977,0.00012037,2]
[399721533,1766635825556,-576.41002852,0.00012037,2]
[399721534,1766635825587,-500.0,0.00012037,2]
[399721535,1766635825617,-452.39277604,0.00012037,2]
[399721536,1766635825900,-472.27290645,0.00012037,2]
[399721537,1766635826354,-198.00395991,0.00012038,2]
[399721538,1766635826392,-898.46296694,0.00012038,2]
[399721539,1766635826423,-180.32884553,0.00012038,2]
[399721540,1766635826454,-343.43717327,0.00012038,2]
[399721541,1766635826485,-628.82939374,0.00012038,2]
[399721542,1766635826516,-300.0,0.00012038,2]
[399721543,1766635827009,-48.4871345,0.00012038,2]
[399721544,1766635827030,-4901.88532122,0.00012038,2]
[399721545,1766635827054,-10000.01,0.00012038,2]
[399721546,1766635827099,-10000.01,0.00012038,2]
[399721547,1766635827114,-10000.01,0.00012038,2]
[399721548,1766635827129,-10000.01,0.00012038,2]
[399721549,1766635827178,-10000.01,0.00012038,2]
[399721550,1766635828146,-10000.01,0.00012038,2]
[399721551,1766635828242,-10000.01,0.00012038,2]
[399721552,1766635831392,-10000.01,0.00012038,2]
[399721553,1766635831524,-10000.01,0.00012038,2]
[399721554,1766635831656,-10000.01,0.00012038,2]
[399721555,1766635832133,-55849.14000994,0.00012038,2]
[399721556,1766635832145,-871.59889273,0.00012038,2]
[399721557,1766635832157,-745.6569597,0.00012038,2]
[399721558,1766635832175,-10000.01,0.00012038,2]
[399721559,1766635832190,-10000.01,0.00012038,2]
[399721560,1766635832202,-1368.78642871,0.00012038,2]
[399721561,1766635832218,-10000.01,0.00012038,2]
[399721562,1766635832234,-820.41914371,0.00012038,2]
[399721563,1766635832246,-5122.77531072,0.00012038,2]
[399721564,1766635832258,-4900.3748153,0.00012038,2]
[399721565,1766635832270,-874.0,0.00012038,2]
[399721566,1766635832286,-3773.8207,0.00012038,2]
[399721568,1766635838171,-895.5214939,0.00012038,2]
[399721569,1766635838183,-633.81562946,0.00012038,2]
[399721774,1766635840869,-1.7e-07,0.00012038,2]
[399721775,1766635840882,-357166.00897742,0.00012038,2]
[399721776,1766635840892,-2500.0,0.00012038,2]
[399721777,1766635840902,-1309.0356,0.00012038,2]
[399721778,1766635840912,-236.0434,0.00012038,2]
[399721779,1766635840922,-500.0,0.00012038,2]
[399721780,1766635840933,-300.0,0.00012098,2]
[399721781,1766635840943,-250.0,0.00012138,2]
[399721782,1766635840953,-262.77314397,0.00012138,2]
[399721783,1766635840963,-1000.0,0.00012143,2]
[399721784,1766635840974,-320.7006,0.00012143,2]
[399721785,1766635840984,-4381.23,0.00012238,2]
[399721786,1766635840993,-7245.23,0.00012502,2]
[399721787,1766635841003,-6654.14,0.00012573,2]
[399721788,1766635841013,-7496.29,0.00012594,2]
[399721789,1766635841023,-150.0,0.00012628,2]
[399721790,1766635841033,-200.0,0.00012686,2]
[399721791,1766635841043,-1057.77987391,0.0001281,2]
[399721792,1766635841053,-211.88641049,0.00012844,2]
[399721793,1766635841063,-150.0,0.00012844,2]
[399721794,1766635841074,-12427.35,0.0001286,2]
[399721795,1766635841084,-2786.82,0.0001286,2]
[399721796,1766635841094,-9999.99,0.0001286,2]
[399721797,1766635841104,-299.99,0.0001286,2]
[399721798,1766635841114,-1176.22,0.0001286,2]
[399721799,1766635841124,-4980.73,0.0001286,2]
[399721800,1766635841134,-5184.31,0.0001286,2]
[399721801,1766635841144,-267.93,0.00012877,2]
[399721802,1766635841154,-297.2,0.00012944,2]
[399721803,1766635841163,-150.99,0.00012944,2]
[399721804,1766635841172,-150.99,0.00012944,2]
[399721805,1766635841186,-29999.99,0.00012944,2]
[399721806,1766635841200,-4999.99,0.00012944,2]
[399721807,1766635841213,-18127.53,0.00012944,2]
[399721810,1766635841226,-999.99,0.00012944,2]
[399721812,1766635841239,-9999.99,0.00012944,2]
[399721814,1766635841252,-2963.99,0.00012944,2]
[399721816,1766635841263,-9999.99,0.00012944,2]
[399721819,1766635841276,-1600.81,0.00012944,2]
[399721821,1766635841289,-208.36,0.00012992,2]
[399721823,1766635841301,-388.0,0.00013081,2]
[399721825,1766635841313,-300.0,0.00013132,2]
[399721827,1766635841324,-43964.91,0.00013156,2]
[399721830,1766635841336,-9966.57,0.00013216,2]
[399721832,1766635841347,-304.57472841,0.00013234,2]
[399721834,1766635841359,-300.0,0.00013242,2]
[399721836,1766635841370,-360.0,0.00013319,2]
[399721838,1766635841380,-1900.0,0.00013345,2]
[399721840,1766635841392,-250.0,0.00013352,2]
[399721842,1766635841404,-411.0479132,0.00013428,2]
[399721844,1766635841415,-11993.54,0.00013428,2]
[399721847,1766635841427,-19775.73,0.00013506,2]
[399721849,1766635841438,-20818.45,0.00013575,2]
[399721851,1766635841449,-215.15,0.00013611,2]
[399721853,1766635841462,-243.94719727,0.00013698,2]
[399721855,1766635841474,-500.0,0.00013698,2]
[399721857,1766635841485,-535.41744153,0.00013698,2]
[399721860,1766635841497,-500.0,0.00013698,2]
[399721862,1766635841508,-500.0,0.00013698,2]
[399721864,1766635841520,-500.0,0.00013698,2]
[399721867,1766635841535,-500.0,0.00013698,2]
[399721869,1766635841547,-500.0,0.00013698,2]
[399721871,1766635841559,-500.0,0.00013698,2]
[399721874,1766635841576,-284.02576832,0.00013698,2]
[399721876,1766635841588,-500.0,0.00013698,2]
[399721878,1766635841601,-500.0,0.00013698,2]
[399721880,1766635841613,-500.0,0.00013698,2]
[399721883,1766635841626,-500.0,0.00013698,2]
[399721885,1766635841638,-500.0,0.00013698,2]
[399721887,1766635841650,-500.0,0.00013698,2]
[399721889,1766635841661,-500.0,0.00013698,2]
[399721891,1766635841672,-500.0,0.00013698,2]
[399721893,1766635841683,-500.0,0.00013698,2]
[399721896,1766635841694,-366.5917359,0.00013698,2]
[399721898,1766635841705,-500.0,0.00013698,2]
[399721900,1766635841716,-500.0,0.00013698,2]
[399721902,1766635841729,-500.0,0.00013698,2]
[399721904,1766635841740,-500.0,0.00013698,2]
[399721906,1766635841751,-500.0,0.00013698,2]
[399721908,1766635841762,-500.0,0.00013698,2]
[399721911,1766635841773,-509.05347783,0.00013698,2]
[399721913,1766635841786,-500.0,0.00013698,2]
[399721915,1766635841799,-500.0,0.00013698,2]
[399721917,1766635841810,-500.0,0.00013698,2]
[399721919,1766635841821,-500.0,0.00013698,2]
[399721921,1766635841832,-500.0,0.00013698,2]
[399721923,1766635841844,-500.0,0.00013698,2]
[399721926,1766635841855,-635.90880642,0.00013698,2]
[399721928,1766635841867,-500.0,0.00013698,2]
[399721930,1766635841879,-500.0,0.00013698,2]
[399721932,1766635841890,-177.33477516,0.00013698,2]
[399721934,1766635841902,-523.3228728,0.00013698,2]
[399721937,1766635841914,-500.0,0.00013698,2]
[399721939,1766635841926,-500.0,0.00013698,2]
[399721941,1766635841936,-500.0,0.00013698,2]
[399721943,1766635841948,-500.0,0.00013698,2]
[399721945,1766635841959,-500.0,0.00013698,2]
[399721947,1766635841971,-500.0,0.00013698,2]
[399721949,1766635841983,-527.36006097,0.00013698,2]
[399721952,1766635841994,-500.0,0.00013698,2]
[399721954,1766635842006,-500.0,0.00013698,2]
[399721956,1766635842018,-500.0,0.00013698,2]
[399721958,1766635842029,-500.0,0.00013698,2]
[399721961,1766635842041,-16159.3,0.00013699,2]
[399721963,1766635842054,-817.05,0.00013699,2]
[399721965,1766635842065,-500.0,0.00013699,2]
[399721967,1766635842076,-500.0,0.00013699,2]
[399721970,1766635842094,-500.0,0.00013699,2]
[399721973,1766635842113,-500.0,0.00013699,2]
[399721976,1766635842127,-500.0,0.00013699,2]
[399721978,1766635842141,-500.0,0.00013699,2]
[399721980,1766635842153,-500.0,0.00013699,2]
[399721983,1766635842165,-533.72929999,0.00013699,2]
[399721985,1766635842177,-500.0,0.00013699,2]
[399721987,1766635842189,-500.0,0.00013699,2]
[399721990,1766635842203,-500.0,0.00013699,2]
[399721992,1766635842216,-19720.55,0.00013878,2]
[399721995,1766635842229,-500.0,0.00013995,2]
[399721997,1766635842242,-500.0,0.00013995,2]
[399721999,1766635842254,-500.0,0.00013995,2]
[399722001,1766635842266,-536.28751393,0.00013995,2]
[399722004,1766635842279,-500.0,0.00013995,2]
[399722006,1766635842290,-500.0,0.00013995,2]
[399722008,1766635842302,-502.53521633,0.00013995,2]
[399722010,1766635842314,-542.8,0.00014122,2]
[399722013,1766635842326,-3240.0,0.00014209,2]
[399722015,1766635842338,-5913.21289833,0.0001451,2]
[399722017,1766635842349,-4548.9,0.00014519,2]
[399722019,1766635842361,-1048.42,0.00014627,2]
[399722021,1766635842374,-542.8,0.00014907,2]
[399722023,1766635842386,-28192.06716255,0.00014934,2]
[399722026,1766635842398,-9957.40381954,0.00015023,2]
[399722028,1766635842411,-166.66,0.00015153,2]
[399722031,1766635842427,-151.0,0.00015184,2]
[399722034,1766635842446,-151.0,0.00015188,2]
[399722036,1766635842461,-307.25,0.0001537,2]
[399722038,1766635842475,-250.79,0.0001537,2]
[399722041,1766635842489,-170.78,0.0001537,2]
[399722043,1766635842502,-166.66,0.00015653,2]
[399722045,1766635842515,-542.8,0.00015692,2]
[399722048,1766635842528,-250.0,0.00015774,2]
[399722050,1766635842541,-166.66,0.00016153,2]
[399722052,1766635842554,-500.0,0.00016437,2]
[399722055,1766635842568,-500.0,0.00016437,2]
[399722057,1766635842580,-643.35178864,0.00016437,2]
[399722059,1766635842591,-500.0,0.00016437,2]
[399722061,1766635842602,-500.0,0.00016437,2]
[399722064,1766635842615,-1710.93069381,0.00016438,2]
[399722066,1766635842628,-1710.93069381,0.00016438,2]
[399722067,1766635842648,-1710.93069381,0.00016438,2]
[399722070,1766635842660,-1710.93069381,0.00016438,2]
[399722072,1766635842670,-1710.93069381,0.00016438,2]
[399722074,1766635842682,-1710.93069381,0.00016438,2]
[399722076,1766635842692,-1710.93069381,0.00016438,2]
[399722078,1766635842702,-1710.93069381,0.00016438,2]
[399722080,1766635842713,-1710.93069381,0.00016438,2]
[399722082,1766635842725,-1710.93069381,0.00016438,2]
[399722085,1766635842738,-1710.93069381,0.00016438,2]
[399722087,1766635842750,-1710.93069381,0.00016438,2]
[399722090,1766635842763,-1710.93069381,0.00016438,2]
[399722092,1766635842776,-1710.93069381,0.00016438,2]
[399722094,1766635842792,-1710.93069381,0.00016438,2]
[399722095,1766635842802,-1710.93069381,0.00016438,2]
[399722096,1766635842812,-1710.93069381,0.00016438,2]
[399722097,1766635842822,-1710.93069381,0.00016438,2]
[399722098,1766635842833,-1710.93069381,0.00016438,2]
[399722099,1766635842843,-1710.93069381,0.00016438,2]
[399722100,1766635842853,-1710.93069381,0.00016438,2]
[399722101,1766635842863,-1710.93069381,0.00016438,2]
[399722102,1766635842873,-1710.93069381,0.00016438,2]
[399722103,1766635842883,-1710.93069381,0.00016438,2]
[399722104,1766635842895,-1710.93069381,0.00016438,2]
[399722105,1766635842906,-1710.93069381,0.00016438,2]
[399722106,1766635842917,-1710.93069381,0.00016438,2]
[399722107,1766635842928,-1710.93069381,0.00016438,2]
[399722108,1766635842940,-1710.93069381,0.00016438,2]
[399722109,1766635842952,-1710.93069381,0.00016438,2]
[399722110,1766635842965,-1710.93069381,0.00016438,2]
[399722111,1766635842981,-1710.93069381,0.00016438,2]
[399722112,1766635842993,-1710.93069381,0.00016438,2]
[399722113,1766635843004,-1710.93069381,0.00016438,2]
[399722114,1766635843016,-1710.93069381,0.00016438,2]
[399722115,1766635843028,-1710.93069381,0.00016438,2]
[399722116,1766635843039,-1710.93069381,0.00016438,2]
[399722117,1766635843050,-1710.93069381,0.00016438,2]
[399722118,1766635843062,-1710.93069381,0.00016438,2]
[399722120,1766635843075,-1710.93069381,0.00016438,2]
[399722122,1766635843086,-1710.93069381,0.00016438,2]
[399722124,1766635843097,-1710.93069381,0.00016438,2]
[399722126,1766635843108,-1710.93069381,0.00016438,2]
[399722128,1766635843118,-1710.93069381,0.00016438,2]
[399722130,1766635843128,-1710.93069381,0.00016438,2]
[399722132,1766635843139,-1710.93069381,0.00016438,2]
[399722135,1766635843154,-1710.93069381,0.00016438,2]
[399722137,1766635843165,-1710.93069381,0.00016438,2]
[399722139,1766635843175,-1710.93069381,0.00016438,2]
[399722141,1766635843186,-1710.93069381,0.00016438,2]
[399722144,1766635843201,-1710.93069381,0.00016438,2]
[399722146,1766635843213,-1710.93069381,0.00016438,2]
[399722148,1766635843224,-1710.93069381,0.00016438,2]
[399722150,1766635843234,-1710.93069381,0.00016438,2]
[399722152,1766635843245,-1710.93069381,0.00016438,2]
[399722154,1766635843256,-1710.93069381,0.00016438,2]
[399722156,1766635843266,-1710.93069381,0.00016438,2]
[399722159,1766635843277,-1710.93069381,0.00016438,2]
[399722161,1766635843289,-1710.93069381,0.00016438,2]
[399722163,1766635843301,-1710.93069381,0.00016438,2]
[399722165,1766635843312,-1710.93069381,0.00016438,2]
[399722167,1766635843323,-1710.93069381,0.00016438,2]
[399722170,1766635843335,-1653.89967069,0.00016438,2]
[399722172,1766635843346,-1653.89967069,0.00016438,2]
[399722174,1766635843357,-1653.89967069,0.00016438,2]
[399722176,1766635843368,-1653.89967069,0.00016438,2]
[399722178,1766635843380,-1653.89967069,0.00016438,2]
[399722180,1766635843391,-1653.89967069,0.00016438,2]
[399722182,1766635843402,-1653.89967069,0.00016438,2]
[399722185,1766635843414,-1653.89967069,0.00016438,2]
[399722187,1766635843424,-1653.89967069,0.00016438,2]
[399722189,1766635843436,-1653.89967069,0.00016438,2]
[399722191,1766635843447,-1653.89967069,0.00016438,2]
[399722193,1766635843458,-1653.89967069,0.00016438,2]
[399722195,1766635843468,-1653.89967069,0.00016438,2]
[399722197,1766635843479,-1653.89967069,0.00016438,2]
[399722200,1766635843490,-1653.89967069,0.00016438,2]
[399722202,1766635843500,-1653.89967069,0.00016438,2]
[399722204,1766635843512,-1653.89967069,0.00016438,2]
[399722206,1766635843523,-1653.89967069,0.00016438,2]
[399722208,1766635843534,-1653.89967069,0.00016438,2]
[399722210,1766635843545,-1653.89967069,0.00016438,2]
[399722213,1766635843557,-1653.89967069,0.00016438,2]
[399722215,1766635843571,-1653.89967069,0.00016438,2]
[399722217,1766635843583,-1653.89967069,0.00016438,2]
[399722220,1766635843594,-1653.89967069,0.00016438,2]
[399722222,1766635843616,-1653.89967069,0.00016438,2]
[399722224,1766635843628,-1653.89967069,0.00016438,2]
[399722227,1766635843639,-1653.89967069,0.00016438,2]
[399722229,1766635843651,-542.8,0.00016476,2]
[399722231,1766635843662,-166.66,0.00016653,2]
[399722233,1766635843674,-165.25,0.00016712,2]
[399722235,1766635843689,-500.0,0.00016726,2]
[399722238,1766635843700,-150.73404556,0.00016726,2]
[399722240,1766635843711,-150.0,0.00016726,2]
[399722242,1766635843724,-150.0,0.00016726,2]
[399722244,1766635843736,-150.0,0.00016726,2]
[399722246,1766635843747,-500.0,0.00016726,2]
[399722249,1766635843761,-150.0,0.00016726,2]
[399722251,1766635843783,-150.0,0.00016726,2]
[399722253,1766635843793,-150.0,0.00016726,2]
[399722255,1766635843805,-150.0,0.00016726,2]
[399722257,1766635843817,-500.0,0.00016726,2]
[399722259,1766635843828,-150.0,0.00016726,2]
[399722261,1766635843838,-150.0,0.00016726,2]
[399722263,1766635843849,-500.0,0.00016726,2]
[399722265,1766635843859,-150.0,0.00016726,2]
[399722267,1766635843870,-978.0,0.00016726,2]
[399722269,1766635843880,-500.0,0.00016726,2]
[399722271,1766635843900,-500.0,0.00016726,2]
[399722274,1766635843920,-500.0,0.00016726,2]
[399722276,1766635843932,-974.0,0.00016726,2]
[399722278,1766635843945,-500.0,0.00016726,2]
[399722280,1766635843956,-150.0,0.00016726,2]
[399722282,1766635843967,-150.0,0.00016726,2]
[399722284,1766635843979,-500.0,0.00016726,2]
[399722286,1766635843990,-150.0,0.00016726,2]
[399722288,1766635844001,-150.0,0.00016726,2]
[399722290,1766635844012,-150.0,0.00016726,2]
[399722292,1766635844023,-500.0,0.00016726,2]
[399722294,1766635844034,-500.0,0.00016726,2]
[399722297,1766635844045,-500.0,0.00016726,2]
[399722299,1766635844055,-688.0,0.00016726,2]
[399722301,1766635844067,-150.0,0.00016726,2]
[399722303,1766635844077,-500.0,0.00016726,2]
[399722305,1766635844088,-475.0,0.00016726,2]
[399722307,1766635844099,-500.0,0.00016726,2]
[399722310,1766635844110,-150.0,0.00016726,2]
[399722312,1766635844120,-150.0,0.00016726,2]
[399722314,1766635844130,-150.0,0.00016726,2]
[399722316,1766635844140,-152.5369494,0.00016726,2]
[399722318,1766635844151,-500.0,0.00016726,2]
[399722320,1766635844161,-500.0,0.00016726,2]
[399722322,1766635844171,-500.0,0.00016726,2]
[399722324,1766635844181,-500.0,0.00016726,2]
[399722326,1766635844191,-500.0,0.00016726,2]
[399722328,1766635844202,-506.1580522,0.00016753,2]
[399722330,1766635844213,-162.16080322,0.00016753,2]
[399722332,1766635844224,-150.0,0.00016753,2]
[399722335,1766635844236,-150.0,0.00016753,2]
[399722337,1766635844246,-500.0,0.00016753,2]
[399722410,1766635844958,-154.54206526,0.00016753,2]
[399722412,1766635844969,-150.0,0.00016753,2]
[399722414,1766635844979,-150.0,0.00016753,2]
[399722416,1766635844989,-175.8191271,0.00016753,2]
[399722418,1766635844999,-500.0,0.00016753,2]
[399722420,1766635845008,-150.0,0.00016753,2]
[399722422,1766635845018,-257.47870038,0.00016753,2]
[399722424,1766635845027,-500.0,0.00016753,2]
[399722426,1766635845042,-150.0,0.00016753,2]
[399722428,1766635845051,-500.0,0.00016753,2]
[399722430,1766635845061,-978.0,0.00016753,2]
[399722432,1766635845071,-500.0,0.00016753,2]
[399722435,1766635845080,-500.0,0.00016753,2]
[399722436,1766635845090,-974.0,0.00016753,2]
[399722439,1766635845100,-500.0,0.00016753,2]
[399722441,1766635845110,-155.31344132,0.00016753,2]
[399722443,1766635845120,-150.0,0.00016753,2]
[399722445,1766635845129,-500.0,0.00016753,2]
[399722447,1766635845139,-150.0,0.00016753,2]
[399722449,1766635845149,-150.0,0.00016753,2]
[399722451,1766635845159,-500.0,0.00016753,2]
[399722453,1766635845169,-500.0,0.00016753,2]
[399722455,1766635845179,-500.0,0.00016753,2]
[399722457,1766635845188,-688.0,0.00016753,2]
[399722459,1766635845198,-500.0,0.00016753,2]
[399722461,1766635845209,-475.0,0.00016753,2]
[399722463,1766635845219,-507.91503303,0.00016753,2]
[399722465,1766635845230,-150.0,0.00016753,2]
[399722467,1766635845240,-150.0,0.00016753,2]
[399722469,1766635845250,-500.0,0.00016753,2]
[399722471,1766635845261,-512.64078533,0.00016753,2]
[399722473,1766635845270,-500.0,0.00016753,2]
[399722476,1766635845281,-500.0,0.00016753,2]
[399722478,1766635845292,-500.0,0.00016753,2]
[399722479,1766635845302,-157.68957014,0.00016781,2]
[399722481,1766635845312,-232.31596184,0.00016781,2]
[399722484,1766635845323,-310.19111312,0.00016781,2]
[399722486,1766635845333,-150.0,0.00016781,2]
[399722487,1766635845343,-282.19614538,0.00016781,2]
[399722490,1766635845353,-168.55832196,0.00016781,2]
[399722491,1766635845363,-150.0,0.00016781,2]
[399722493,1766635845373,-351.75948857,0.00016781,2]
[399722496,1766635845383,-150.0,0.00016781,2]
[399722498,1766635845392,-500.0,0.00016781,2]
[399722500,1766635845402,-978.0,0.00016781,2]
[399722501,1766635845412,-522.4917813,0.00016781,2]
[399722504,1766635845423,-500.0,0.00016781,2]
[399722505,1766635845433,-974.0,0.00016781,2]
[399722508,1766635845443,-500.0,0.00016781,2]
[399722510,1766635845455,-150.0,0.00016781,2]
[399722512,1766635845465,-500.0,0.00016781,2]
[399722513,1766635845474,-167.82104978,0.00016781,2]
[399722516,1766635845485,-150.0,0.00016781,2]
[399722517,1766635845495,-500.0,0.00016781,2]
[399722519,1766635845506,-500.0,0.00016781,2]
[399722522,1766635845516,-500.0,0.00016781,2]
[399722524,1766635845526,-688.0,0.00016781,2]
[399722525,1766635845536,-500.0,0.00016781,2]
[399722527,1766635845546,-475.0,0.00016781,2]
[399722530,1766635845556,-203.93761826,0.00016781,2]
[399722532,1766635845567,-150.0,0.00016781,2]
[399722534,1766635845578,-500.0,0.00016781,2]
[399722536,1766635845588,-500.0,0.00016781,2]
[399722538,1766635845597,-500.0,0.00016781,2]
[399722540,1766635845607,-500.0,0.00016781,2]
[399722542,1766635845617,-150.0,0.00016808,2]
[399722544,1766635845627,-167.32949041,0.00016808,2]
[399722546,1766635845636,-150.0,0.00016808,2]
[399722548,1766635845646,-500.0,0.00016808,2]
[399722550,1766635845656,-978.0,0.00016808,2]
[399722552,1766635845665,-500.0,0.00016808,2]
[399722554,1766635845675,-974.0,0.00016808,2]
[399722556,1766635845684,-500.0,0.00016808,2]
[399722558,1766635845695,-150.0,0.00016808,2]
[399722560,1766635845705,-500.0,0.00016808,2]
[399722562,1766635845715,-150.0,0.00016808,2]
[399722564,1766635845725,-500.0,0.00016808,2]
[399722566,1766635845734,-500.0,0.00016808,2]
[399722568,1766635845744,-500.0,0.00016808,2]
[399722570,1766635845754,-688.0,0.00016808,2]
[399722572,1766635845763,-500.0,0.00016808,2]
[399722574,1766635845773,-475.0,0.00016808,2]
[399722576,1766635845783,-161.85756693,0.00016808,2]
[399722578,1766635845793,-500.0,0.00016808,2]
[399722580,1766635845803,-517.71595171,0.00016808,2]
[399722582,1766635845812,-500.0,0.00016808,2]
[399722584,1766635845822,-500.0,0.00016808,2]
[399722586,1766635845832,-150.0,0.00016836,2]
[399722588,1766635845843,-150.0,0.00016836,2]
[399722590,1766635845852,-500.0,0.00016836,2]
[399722592,1766635845862,-978.0,0.00016836,2]
[399722594,1766635845872,-500.0,0.00016836,2]
[399722596,1766635845881,-974.0,0.00016836,2]
[399722598,1766635845891,-500.0,0.00016836,2]
[399722600,1766635845902,-150.0,0.00016836,2]
[399722602,1766635845911,-249.45287374,0.00016836,2]
[399722603,1766635845922,-237.01592823,0.00016836,2]
[399722605,1766635845932,-500.0,0.00016836,2]
[399722607,1766635845941,-500.0,0.00016836,2]
[399722608,1766635845950,-500.0,0.00016836,2]
[399722610,1766635845960,-688.0,0.00016836,2]
[399722612,1766635845969,-500.0,0.00016836,2]
[399722615,1766635845980,-475.0,0.00016836,2]
[399722617,1766635845991,-500.0,0.00016836,2]
[399722619,1766635846001,-500.0,0.00016836,2]
[399722621,1766635846011,-500.0,0.00016836,2]
[399722622,1766635846021,-158.71398149,0.00016863,2]
[399722624,1766635846033,-219.84893348,0.00016863,2]
[399722625,1766635846043,-500.0,0.00016863,2]
[399722626,1766635846053,-978.0,0.00016863,2]
[399722627,1766635846063,-500.0,0.00016863,2]
[399722628,1766635846073,-974.0,0.00016863,2]
[399722629,1766635846082,-500.0,0.00016863,2]
[399722630,1766635846092,-192.57094346,0.00016863,2]
[399722631,1766635846102,-641.75453551,0.00016863,2]
[399722632,1766635846113,-500.0,0.00016863,2]
[399722633,1766635846123,-500.0,0.00016863,2]
[399722634,1766635846134,-688.0,0.00016863,2]
[399722635,1766635846145,-500.0,0.00016863,2]
[399722636,1766635846155,-475.0,0.00016863,2]
[399722637,1766635846165,-500.0,0.00016863,2]
[399722638,1766635846175,-500.0,0.00016863,2]
[399722639,1766635846184,-500.0,0.00016863,2]
[399722640,1766635846194,-500.0,0.0001689,2]
[399722641,1766635846204,-978.0,0.0001689,2]
[399722642,1766635846214,-500.0,0.0001689,2]
[399722643,1766635846224,-974.0,0.0001689,2]
[399722644,1766635846234,-500.0,0.0001689,2]
[399722645,1766635846245,-500.0,0.0001689,2]
[399722646,1766635846255,-500.0,0.0001689,2]
[399722647,1766635846266,-688.0,0.0001689,2]
[399722648,1766635846276,-500.0,0.0001689,2]
[399722649,1766635846286,-475.0,0.0001689,2]
[399722650,1766635846295,-500.0,0.0001689,2]
[399722651,1766635846305,-500.0,0.0001689,2]
[399722652,1766635846315,-500.0,0.0001689,2]
[399722653,1766635846326,-500.0,0.00016918,2]